Workbook

Sheet Лист1
A1: Школа | C1: МБОУ "Изыхская СШ" | F1: Утвердил: | G1: должность | H1: директор
A2: Типовое примерное меню приготавливаемых блюд | G2: фамилия | H2: Немцева И.Н.
A3: Возрастная категория | E3: 7-11 лет | G3: дата | H3: 2 | I3: 3 | J3: 2026
H4: день | I4: месяц | J4: год
A5: Неделя | B5: День недели | C5: Прием пищи | D5: Раздел меню | E5: Блюда | F5: Вес блюда, г | G5: Белки | H5: Жиры | I5: Углеводы | J5: Калорийность | K5: № рецептуры | L5: Цена
A6: 1 | B6: 1 | C6: Завтрак | D6: гор.блюдо
D8: гор.напиток
D9: хлеб
D10: фрукты
D13: итого | F13: =SUM(F6:F12) -> 0 | G13: =SUM(G6:G12) -> 0 | H13: =SUM(H6:H12) -> 0 | I13: =SUM(I6:I12) -> 0 | J13: =SUM(J6:J12) -> 0
A14: =A6 -> 1 | B14: =B6 -> 1 | C14: Обед | D14: закуска | E14: ИКРА КАБАЧКОВАЯ ПРОМЫШЛЕННОГО ПРОИЗВОДСТВА | F14: 60 | G14: 0 | H14: 7 | I14: 7 | J14: 90 | K14: пром.
D15: 1 блюдо | E15: СУП КАРТОФЕЛЬНЫЙ С МАКАРОННЫМИ ИЗДЕЛИЯМИ | F15: 200 | G15: 5.2 | H15: 2.8 | I15: 18.5 | J15: 119.6 | K15: 54-7с
D16: 2 блюдо | E16: КОТЛЕТА ИЗ ГОВЯДИНЫ | F16: 90 | G16: 16.4 | H16: 15.7 | I16: 14.9 | J16: 265.32 | K16: 54-4м
D17: гарнир | E17: КАША ГРЕЧНЕВАЯ РАССЫПЧАТАЯ | F17: 150 | G17: 8.3 | H17: 6.333333333 | I17: 36 | J17: 233.7 | K17: 54-4г
D18: сладкое
D19: хлеб бел. | E19: ХЛЕБ ПШЕНИЧНЫЙ | F19: 30 | G19: 2.28 | H19: 0.24 | I19: 14.8 | J19: 70.5 | K19: пром.
D20: хлеб черн. | E20: ХЛЕБ РЖАНО-ПШЕНИЧНЫЙ | F20: 10 | G20: 0.6 | H20: 1.9 | I20: 0.3 | J20: 34 | K20: пром.
D21: гор.напиток | E21: ЧАЙ С САХАРОМ | F21: 200 | G21: 0.2 | H21: 0 | I21: 6.5 | J21: 26.8 | K21: 54-2гн
D22: фрукты | E22: фрукты | F22: 120 | G22: 0.5 | H22: 0.5 | I22: 11.8 | J22: 53.5 | K22: пром.
D23: итого | F23: =SUM(F14:F22) -> 860 | G23: =SUM(G14:G22) -> 33.48 | H23: =SUM(H14:H22) -> 34.47333333 | I23: =SUM(I14:I22) -> 109.8 | J23: =SUM(J14:J22) -> 893.42
A24: =A6 -> 1 | B24: =B6 -> 1 | C24: Итого за день: | F24: =F13+F23 -> 860 | G24: =G13+G23 -> 33.48 | H24: =H13+H23 -> 34.47333333 | I24: =I13+I23 -> 109.8 | J24: =J13+J23 -> 893.42
A25: 1 | B25: 2 | C25: Завтрак | D25: гор.блюдо
D27: гор.напиток
D28: хлеб
D29: фрукты
D32: итого | F32: =SUM(F25:F31) -> 0 | G32: =SUM(G25:G31) -> 0 | H32: =SUM(H25:H31) -> 0 | I32: =SUM(I25:I31) -> 0 | J32: =SUM(J25:J31) -> 0
A33: =A25 -> 1 | B33: =B25 -> 2 | C33: Обед | D33: закуска | E33: КУКУРУЗА САХАРНАЯ | F33: 60 | G33: 16.97 | H33: 31.3 | I33: 1.2 | J33: 0.2 | K33: пром.
D34: 1 блюдо | E34: СУП ГОРОХОВЫЙ | F34: 200 | G34: 13.6 | H34: 141.1 | I34: 7.2 | J34: 3.8 | K34: 54-8с
D35: 2 блюдо | E35: ТЕФТЕЛИ ИЗ ГОВЯДИНЫ С РИСОМ | F35: 90 | G35: 34.81 | H35: 199.6 | I35: 13 | J35: 13.2 | K35: 54-16м
D36: гарнир | E36: КАРТОФЕЛЬНОЕ ПЮРЕ | F36: 150 | G36: 10.7 | H36: 139.4 | I36: 3.2 | J36: 5.2 | K36: 54-11г
D37: сладкое | E37: фрукты | F37: 100 | G37: 11.49 | K37: пром.
D38: хлеб бел. | E38: ХЛЕБ ПШЕНИЧНЫЙ | F38: 30 | G38: 0.87 | H38: 70.5 | I38: 2.28 | J38: 0.24 | K38: пром.
D39: хлеб черн. | E39: ХЛЕБ РЖАНО-ПШЕНИЧНЫЙ | F39: 15 | G39: 0.44 | H39: 51 | I39: 0.92 | J39: 2.83 | K39: пром.
D40: гор.напиток | E40: КОМПОТ ИЗ СМЕСИ СУХОФРУКТОВ | F40: 200 | G40: 5.12 | H40: 81 | I40: 0.5 | J40: 0 | K40: 54-7хн
D42: итого | F42: =SUM(F33:F41) -> 845 | G42: =SUM(G33:G41) -> 94 | H42: =SUM(H33:H41) -> 713.9 | I42: =SUM(I33:I41) -> 28.3 | J42: =SUM(J33:J41) -> 25.47
A43: =A25 -> 1 | B43: =B25 -> 2 | C43: Итого за день: | F43: =F32+F42 -> 845 | G43: =G32+G42 -> 94 | H43: =H32+H42 -> 713.9 | I43: =I32+I42 -> 28.3 | J43: =J32+J42 -> 25.47
A44: 1 | B44: 3 | C44: Завтрак | D44: гор.блюдо
D46: гор.напиток
D47: хлеб
D48: фрукты
D51: итого | F51: =SUM(F44:F50) -> 0 | G51: =SUM(G44:G50) -> 0 | H51: =SUM(H44:H50) -> 0 | I51: =SUM(I44:I50) -> 0 | J51: =SUM(J44:J50) -> 0
A52: =A44 -> 1 | B52: =B44 -> 3 | C52: Обед | D52: закуска | E52: САЛАТ КАРТОФЕЛЬНЫЙ С МОРКОВЬЮ И ЗЕЛЕНЫМ ГОРОШКОМ | F52: 60 | G52: 1.7 | H52: 4.3 | I52: 6.2 | J52: 70.5 | K52: 54-7з
D53: 1 блюдо | E53: БОРЩ С КАПУСТОЙ И КАРТОФЕЛЕМ СО СМЕТАНОЙ | F53: 200 | G53: 4.7 | H53: 5 | I53: 18.2 | J53: 110.4 | K53: 54-2с
D54: 2 блюдо | E54: ПЛОВ С КУРИЦЕЙ | F54: 240 | G54: 32.8 | H54: 9.7 | I54: 39.8 | J54: 377.5 | K54: 54-12м
D55: гарнир
D56: сладкое | K56: пром.
D57: хлеб бел. | E57: ХЛЕБ ПШЕНИЧНЫЙ | F57: 30 | G57: 2.28 | H57: 0.24 | I57: 14.76 | J57: 70.5 | K57: пром.
D58: хлеб черн. | E58: ХЛЕБ РЖАНО-ПШЕНИЧНЫЙ | F58: 15 | G58: 0.92 | H58: 2.83 | I58: 0.49 | J58: 51 | K58: пром.
D59: гор.напиток | E59: ЧАЙ С ОБЛЕПИХОЙ, АПЕЛЬСИНОМ И ЯБЛОКОМ С САХАРОМ | F59: 200 | G59: 0.33 | H59: 0.36 | I59: 7.71 | J59: 35.4 | K59: 54-48гн
D61: итого | F61: =SUM(F52:F60) -> 745 | G61: 34.45 | H61: 25 | I61: 113 | J61: =SUM(J52:J60) -> 715.3
A62: =A44 -> 1 | B62: =B44 -> 3 | C62: Итого за день: | F62: =F51+F61 -> 745 | G62: 34.45 | H62: =H51+H61 -> 25 | I62: =I51+I61 -> 113 | J62: =J51+J61 -> 715.3
A63: 1 | B63: 4 | C63: Завтрак | D63: гор.блюдо
D65: гор.напиток
D66: хлеб
D67: фрукты
D70: итого | F70: =SUM(F63:F69) -> 0 | G70: =SUM(G63:G69) -> 0 | H70: =SUM(H63:H69) -> 0 | I70: =SUM(I63:I69) -> 0 | J70: =SUM(J63:J69) -> 0
A71: =A63 -> 1 | B71: =B63 -> 4 | C71: Обед | D71: закуска | E71: ИКРА КАБАЧКОВАЯ ПРОМЫШЛЕННОГО ПРОИЗВОДСТВА | F71: 60 | G71: 0 | H71: 7 | I71: 7 | J71: 90 | K71: пром.
D72: 1 блюдо | E72: ЩИ ИЗ СВЕЖЕЙ КАПУСТЫ С КАРТОФЕЛЕМ | F72: 200 | G72: 4.64 | H72: 5.6 | I72: 5.76 | J72: 92.2 | K72: 494
D73: 2 блюдо | E73: ПТИЦА ЗАПЕЧЕНАЯ | F73: 90 | G73: 16.8 | H73: 13.8 | I73: 0.54 | J73: 193.5 | K73: 124
D74: гарнир | E74: МАКАРОНЫ ОТВАРНЫЕ | F74: 150 | G74: 5.4 | H74: 4.95 | I74: 33 | J74: 196.8 | K74: 54-1г
D75: сладкое | E75: ПРЯНИК | F75: 30 | G75: 1.74 | H75: 1.38 | I75: 22.5 | J75: 109.8 | K75: пром.
D76: хлеб бел. | E76: ХЛЕБ ПШЕНИЧНЫЙ | F76: 20 | G76: 1.52 | H76: 0.16 | I76: 9.84 | J76: 47 | K76: пром.
D77: хлеб черн. | E77: ХЛЕБ РЖАНО-ПШЕНИЧНЫЙ | F77: 15 | G77: 0.92 | H77: 2.83 | I77: 0.49 | J77: 51 | K77: пром.
D78: гор.напиток | E78: ЧАЙ С САХАРОМ | F78: 200 | G78: 0.2 | H78: 0 | I78: 6.5 | J78: 26.8 | K78: 54-2гн
D79: фрукты | E79: фрукты | F79: 100 | G79: 0 | H79: 0 | I79: 0 | J79: 0 | K79: пром.
D80: итого | F80: =SUM(F71:F79) -> 865 | G80: =SUM(G71:G79) -> 31.22 | H80: =SUM(H71:H79) -> 35.72 | I80: =SUM(I71:I79) -> 85.63 | J80: =SUM(J71:J79) -> 807.1
A81: =A63 -> 1 | B81: =B63 -> 4 | C81: Итого за день: | F81: =F70+F80 -> 865 | G81: =G70+G80 -> 31.22 | H81: =H70+H80 -> 35.72 | I81: =I70+I80 -> 85.63 | J81: =J70+J80 -> 807.1
A82: 1 | B82: 5 | C82: Завтрак | D82: гор.блюдо
D84: гор.напиток
D85: хлеб
D86: фрукты
D89: итого | F89: =SUM(F82:F88) -> 0 | G89: =SUM(G82:G88) -> 0 | H89: =SUM(H82:H88) -> 0 | I89: =SUM(I82:I88) -> 0 | J89: =SUM(J82:J88) -> 0
A90: =A82 -> 1 | B90: =B82 -> 5 | C90: Обед | D90: закуска | E90: ВЕНИГРЕТ С РАСТИТЕЛЬНЫМ МАСЛОМ | F90: 60 | G90: 0.6 | H90: 5.3 | I90: 4.1 | J90: 67.1 | K90: 54-16з
D91: 1 блюдо | E91: СУП КАРТОФЕЛЬНЫЙ С МАКАРОННЫМИ ИЗДЕЛИЯМИ | F91: 200 | G91: 5.2 | H91: 2.8 | I91: 18.5 | J91: 119.6 | K91: 54-7с
D92: 2 блюдо | E92: БИТОЧЕК ИЗ КУРИЦЫ | F92: 90 | G92: 17.28 | H92: 3.87 | I92: 1.15 | J92: 151.74 | K92: 54-23М
D93: гарнир | E93: РИС ОТВАРНОЙ С СОУСОМ МОЛОЧНЫМ НАТУРАЛЬНЫМ | F93: 170 | G93: 4.4 | H93: 6.3 | I93: 38.4 | J93: 227.34 | K93: 54-6г
D94: хлеб бел. | E94: ХЛЕБ ПШЕНИЧНЫЙ | F94: 30 | G94: 2.28 | H94: 0.24 | I94: 14.76 | J94: 70.5 | K94: пром.
D95: хлеб черн. | E95: ХЛЕБ РЖАНО-ПШЕНИЧНЫЙ | F95: 15 | G95: 0.92 | H95: 2.83 | I95: 0.49 | J95: 51 | K95: пром.
D96: гор.напиток | E96: НАПИТОК АПЕЛЬСИНОВЫЙ | F96: 200 | G96: 0.2 | H96: 0 | I96: 8 | J96: 33 | K96: 54-33хн
D99: итого | F99: =SUM(F90:F98) -> 765 | G99: =SUM(G90:G98) -> 30.88 | H99: =SUM(H90:H98) -> 21.34 | I99: =SUM(I90:I98) -> 85.4 | J99: =SUM(J90:J98) -> 720.28
A100: =A82 -> 1 | B100: =B82 -> 5 | C100: Итого за день: | F100: =F89+F99 -> 765 | G100: =G89+G99 -> 30.88 | H100: =H89+H99 -> 21.34 | I100: =I89+I99 -> 85.4 | J100: =J89+J99 -> 720.28
A101: 2 | B101: 1 | C101: Завтрак | D101: гор.блюдо
D103: гор.напиток
D104: хлеб
D105: фрукты
D108: итого | F108: =SUM(F101:F107) -> 0 | G108: =SUM(G101:G107) -> 0 | H108: =SUM(H101:H107) -> 0 | I108: =SUM(I101:I107) -> 0 | J108: =SUM(J101:J107) -> 0
A109: =A101 -> 2 | B109: =B101 -> 1 | C109: Обед | D109: закуска | E109: ИКРА КАБАЧКОВАЯ ПРОМЫШЛЕННОГО ПРОИЗВОДСТВА | F109: 60 | G109: 0 | H109: 7 | I109: 7 | J109: 90 | K109: пром.
D110: 1 блюдо | E110: РАССОЛЬНИК ЛЕНИНГРАДСКИЙ | F110: 200 | G110: 4.7 | H110: 5.8 | I110: 13.6 | J110: 125.5 | K110: 54-3с
D111: 2 блюдо | E111: КОТЛЕТА ИЗ ГОВЯДИНЫ | F111: 90 | G111: 16.4 | H111: 15.7 | I111: 14.9 | J111: 265.32 | K111: 54-4м
D112: гарнир | E112: МАКАРОНЫ ОТВАРНЫЕ | F112: 150 | G112: 5.4 | H112: 4.95 | I112: 33 | J112: 196.8 | K112: 54-1г
D113: фрукты | E113: фрукты | F113: 100 | G113: 0 | H113: 0 | I113: 0 | J113: 0 | K113: пром.
D114: хлеб бел. | E114: ХЛЕБ ПШЕНИЧНЫЙ | F114: 20 | G114: 1.52 | H114: 0.16 | I114: 9.84 | J114: 47 | K114: пром.
D115: хлеб черн. | E115: ХЛЕБ РЖАНО-ПШЕНИЧНЫЙ | F115: 15 | G115: 0.92 | H115: 2.83 | I115: 0.49 | J115: 51 | K115: пром.
D116: напиток | E116: ЧАЙ С САХАРОМ | F116: 200 | G116: 0.2 | H116: 0 | I116: 6.5 | J116: 26.8 | K116: 54-2гн
D118: итого | F118: =SUM(F109:F117) -> 835 | G118: =SUM(G109:G117) -> 29.14 | H118: =SUM(H109:H117) -> 36.44 | I118: =SUM(I109:I117) -> 85.33 | J118: =SUM(J109:J117) -> 802.42
A119: =A101 -> 2 | B119: =B101 -> 1 | C119: Итого за день: | F119: =F108+F118 -> 835 | G119: =G108+G118 -> 29.14 | H119: =H108+H118 -> 36.44 | I119: =I108+I118 -> 85.33 | J119: =J108+J118 -> 802.42
A120: 2 | B120: 2 | C120: Завтрак | D120: гор.блюдо
D122: гор.напиток
D123: хлеб
D124: фрукты
D127: итого | F127: =SUM(F120:F126) -> 0 | G127: =SUM(G120:G126) -> 0 | H127: =SUM(H120:H126) -> 0 | I127: =SUM(I120:I126) -> 0 | J127: =SUM(J120:J126) -> 0
A128: =A120 -> 2 | B128: =B120 -> 2 | C128: Обед | D128: закуска | E128: ВЕНИГРЕТ С РАСТИТЕЛЬНЫМ МАСЛОМ | F128: 60 | G128: 0.6 | H128: 5.3 | I128: 4.1 | J128: 67.1 | K128: 54-16з
D129: 1 блюдо | E129: БОРЩ С ФАСОЛЬЮ | F129: 200 | G129: 6.08 | H129: 5.82 | I129: 12.7 | J129: 127.58 | K129: 54-19с
D130: 2 блюдо | E130: ТЕФТЕЛИ ИЗ ГОВЯДИНЫ С РИСОМ | F130: 90 | G130: 13 | H130: 13.2 | I130: 7.2 | J130: 199.6 | K130: 54-16м
D131: гарнир | E131: КАША ГРЕЧНЕВАЯ РАССЫПЧАТАЯ С СОУСОМ КРАСНЫМ ОСНОВНЫМ | F131: 170 | G131: 8.96 | H131: 6.78 | I131: 37.78 | J131: 247.86 | K131: 54-4г
D132: хлеб бел. | E132: ХЛЕБ ПШЕНИЧНЫЙ | F132: 20 | G132: 1.52 | H132: 0.16 | I132: 9.84 | J132: 47 | K132: пром.
D133: хлеб черн. | E133: ХЛЕБ РЖАНО-ПШЕНИЧНЫЙ | F133: 15 | G133: 0.92 | H133: 2.83 | I133: 0.49 | J133: 51 | K133: пром.
D134: напиток | E134: КОМПОТ ИЗ СМЕСИ СУХОФРУКТОВ | F134: 200 | G134: 0.5 | H134: 0 | I134: 19.8 | J134: 81 | K134: 54-7хн
D135: фрукты | E135: фрукты | F135: 100 | G135: 0 | H135: 0 | I135: 0 | J135: 0 | K135: пром.
D137: итого | F137: =SUM(F128:F136) -> 855 | G137: =SUM(G128:G136) -> 31.58 | H137: =SUM(H128:H136) -> 34.09 | I137: =SUM(I128:I136) -> 91.91 | J137: =SUM(J128:J136) -> 821.14
A138: =A120 -> 2 | B138: =B120 -> 2 | C138: Итого за день: | F138: =F127+F137 -> 855 | G138: =G127+G137 -> 31.58 | H138: =H127+H137 -> 34.09 | I138: =I127+I137 -> 91.91 | J138: =J127+J137 -> 821.14
A139: 2 | B139: 3 | C139: Завтрак | D139: гор.блюдо
D141: гор.напиток
D142: хлеб
D143: фрукты
D146: итого | F146: =SUM(F139:F145) -> 0 | G146: =SUM(G139:G145) -> 0 | H146: =SUM(H139:H145) -> 0 | I146: =SUM(I139:I145) -> 0 | J146: =SUM(J139:J145) -> 0
A147: =A139 -> 2 | B147: =B139 -> 3 | C147: Обед | D147: закуска | E147: САЛАТ КАРТОФЕЛЬНЫЙ С МОРКОВЬЮ И ЗЕЛЕНЫМ ГОРОШКОМ | F147: 60 | G147: 1.7 | H147: 4.3 | I147: 6.2 | J147: 70.5 | K147: 54-7з
D148: 1 блюдо | E148: СУП ИЗ ОВОЩЕЙ С ФРИКАДЕЛЬКАМИ МЯСНЫМИ | F148: 200 | G148: 6 | H148: 5.4 | I148: 13.5 | J148: 127.2 | K148: 54-5с
D149: 2 блюдо | E149: КОТЛЕТА ИЗ КУРИЦЫ | F149: 90 | G149: 17.3 | H149: 3.9 | I149: 12.2 | J149: 151.7 | K149: 54-5М
D150: гарнир | E150: РИС ОТВАРНОЙ С СОУСОМ СМЕТАННЫМ | F150: 170 | G150: 4 | H150: 6.4 | I150: 36.5 | J150: 222.1 | K150: 54-6г
D151: хлеб бел. | E151: ХЛЕБ ПШЕНИЧНЫЙ | F151: 30 | G151: 2.28 | H151: 0.24 | I151: 14.76 | J151: 70.5 | K151: пром.
D152: хлеб черн. | E152: ХЛЕБ РЖАНО-ПШЕНИЧНЫЙ | F152: 15 | G152: 0.92 | H152: 2.83 | I152: 0.49 | J152: 51 | K152: пром.
D153: гор.напиток | E153: КОМПОТ ИЗ КУРАГИ | F153: 200 | G153: 1 | H153: 0.1 | I153: 15.7 | J153: 66.9 | K153: 54-2хн
D154: фрукты | E154: фрукты | F154: 100 | G154: 0 | H154: 0 | I154: 0 | J154: 0 | K154: пром.
D156: итого | F156: =SUM(F147:F155) -> 865 | G156: =SUM(G147:G155) -> 33.2 | H156: =SUM(H147:H155) -> 23.17 | I156: =SUM(I147:I155) -> 99.35 | J156: =SUM(J147:J155) -> 759.9
A157: =A139 -> 2 | B157: =B139 -> 3 | C157: Итого за день: | F157: =F146+F156 -> 865 | G157: =G146+G156 -> 33.2 | H157: =H146+H156 -> 23.17 | I157: =I146+I156 -> 99.35 | J157: =J146+J156 -> 759.9
A158: 2 | B158: 4 | C158: Завтрак | D158: гор.блюдо
D160: гор.напиток
D161: хлеб
D162: фрукты
D165: итого | F165: =SUM(F158:F164) -> 0 | G165: =SUM(G158:G164) -> 0 | H165: =SUM(H158:H164) -> 0 | I165: =SUM(I158:I164) -> 0 | J165: =SUM(J158:J164) -> 0
A166: =A158 -> 2 | B166: =B158 -> 4 | C166: Обед | D166: закуска | E166: САЛАТ ИЗ СВЕЖИХ ПОМИДОРОВ И ОГУРЦОВ | F166: 60 | G166: 0.6 | H166: 3.1 | I166: 1.8 | J166: 37.6 | K166: 54-5з
D167: 1 блюдо | E167: СУП КАРТОФЕЛЬНЫЙ С МАКАРОННЫМИ ИЗДЕЛИЯМИ | F167: 200 | G167: 5.2 | H167: 2.8 | I167: 18.5 | J167: 119.6 | K167: 54-7с
D168: 2 блюдо | E168: РЫБА, ЗАПЕЧЕННАЯ В СМЕТАННОМ СОУСЕ | F168: 90 | G168: 17.01 | H168: 19.8 | I168: 4.95 | J168: 266.2 | K168: 54-9р
D169: гарнир | E169: КАРТОФЕЛЬНОЕ ПЮРЕ | F169: 150 | G169: 3.2 | H169: 5.2 | I169: 19.8 | J169: 139.4 | K169: 54-11г
D170: хлеб бел. | E170: ХЛЕБ ПШЕНИЧНЫЙ | F170: 30 | G170: 2.28 | H170: 0.24 | I170: 14.76 | J170: 70.5 | K170: пром.
D171: хлеб черн. | E171: ХЛЕБ РЖАНО-ПШЕНИЧНЫЙ | F171: 15 | G171: 0.92 | H171: 2.83 | I171: 0.49 | J171: 51 | K171: пром.
D172: напиток | E172: ЧАЙ С ОБЛЕПИХОЙ И САХАРОМ | F172: 200 | G172: 0.3 | H172: 0.6 | I172: 7.1 | J172: 35 | K172: 54-5гн
D175: итого | F175: =SUM(F166:F174) -> 745 | G175: =SUM(G166:G174) -> 29.51 | H175: =SUM(H166:H174) -> 34.57 | I175: =SUM(I166:I174) -> 67.4 | J175: =SUM(J166:J174) -> 719.3
A176: =A158 -> 2 | B176: =B158 -> 4 | C176: Итого за день: | F176: =F165+F175 -> 745 | G176: =G165+G175 -> 29.51 | H176: =H165+H175 -> 34.57 | I176: =I165+I175 -> 67.4 | J176: =J165+J175 -> 719.3
A177: 2 | B177: 5 | C177: Завтрак | D177: гор.блюдо
D179: гор.напиток
D180: хлеб
D181: фрукты
D184: итого | F184: =SUM(F177:F183) -> 0 | G184: =SUM(G177:G183) -> 0 | H184: =SUM(H177:H183) -> 0 | I184: =SUM(I177:I183) -> 0 | J184: =SUM(J177:J183) -> 0
A185: =A177 -> 2 | B185: =B177 -> 5 | C185: Обед | D185: закуска | E185: КУКУРУЗА САХАРНАЯ | F185: 60 | G185: 1.2 | H185: 0.2 | I185: 6.1 | J185: 31.3 | K185: пром.
D186: 1 блюдо | E186: СВЕКОЛЬНИК СО СМЕТАНОЙ | F186: 200 | G186: 1.8 | H186: 5.24 | I186: 10.664 | J186: 88.32 | K186: 54-18с
D187: 2 блюдо | E187: БИТОЧЕК ИЗ КУРИЦЫ | F187: 90 | G187: 17.28 | H187: 3.87 | I187: 1.15 | J187: 151.74 | K187: 54-23м
D188: гарнир | E188: МАКАРОНЫ ОТВАРНЫЕ | F188: 150 | G188: 5.4 | H188: 4.95 | I188: 33 | J188: 196.8 | K188: 54-1г
D189: сладкое | E189: ПРЯНИК | F189: 30 | G189: 1.74 | H189: 1.38 | I189: 22.5 | J189: 109.8 | K189: пром.
D190: хлеб бел. | E190: ХЛЕБ ПШЕНИЧНЫЙ | F190: 20 | G190: 1.52 | H190: 0.16 | I190: 9.84 | J190: 47 | K190: пром.
D191: хлеб черн. | E191: ХЛЕБ РЖАНО-ПШЕНИЧНЫЙ | F191: 15 | G191: 0.92 | H191: 2.83 | I191: 0.49 | J191: 51 | K191: пром.
D192: гор.напиток | E192: НАПИТОК ИЗ ШИПОВНИКА | F192: 200 | G192: 0.6 | H192: 0.2 | I192: 15.2 | J192: 65.3 | K192: 54-13хн
D194: итого | F194: =SUM(F185:F193) -> 765 | G194: =SUM(G185:G193) -> 30.46 | H194: =SUM(H185:H193) -> 18.83 | I194: =SUM(I185:I193) -> 98.944 | J194: =SUM(J185:J193) -> 741.26
A195: =A177 -> 2 | B195: =B177 -> 5 | C195: Итого за день: | F195: =F184+F194 -> 765 | G195: =G184+G194 -> 30.46 | H195: =H184+H194 -> 18.83 | I195: =I184+I194 -> 98.944 | J195: =J184+J194 -> 741.26
C196: Среднее значение за период: | F196: =(F24+F43+F62+F81+F100+F119+F138+F157+F176+F195)/(IF(F24=0,0,1)+IF(F43=0,0,1)+IF(F62=0,0,1)+IF(F81=0,0,1)+IF(F100=0,0,1)+IF(F119=0,0,1)+IF(F138=0,0,1)+IF(F157=0,0,1)+IF(F176=0,0,1)+IF(F195=0,0,1)) -> 814.5 | G196: =(G24+G43+G62+G81+G100+G119+G138+G157+G176+G195)/(IF(G24=0,0,1)+IF(G43=0,0,1)+IF(G62=0,0,1)+IF(G81=0,0,1)+IF(G100=0,0,1)+IF(G119=0,0,1)+IF(G138=0,0,1)+IF(G157=0,0,1)+IF(G176=0,0,1)+IF(G195=0,0,1)) -> 37.792 | H196: =(H24+H43+H62+H81+H100+H119+H138+H157+H176+H195)/(IF(H24=0,0,1)+IF(H43=0,0,1)+IF(H62=0,0,1)+IF(H81=0,0,1)+IF(H100=0,0,1)+IF(H119=0,0,1)+IF(H138=0,0,1)+IF(H157=0,0,1)+IF(H176=0,0,1)+IF(H195=0,0,1)) -> 97.75333333 | I196: =(I24+I43+I62+I81+I100+I119+I138+I157+I176+I195)/(IF(I24=0,0,1)+IF(I43=0,0,1)+IF(I62=0,0,1)+IF(I81=0,0,1)+IF(I100=0,0,1)+IF(I119=0,0,1)+IF(I138=0,0,1)+IF(I157=0,0,1)+IF(I176=0,0,1)+IF(I195=0,0,1)) -> 86.5064 | J196: =(J24+J43+J62+J81+J100+J119+J138+J157+J176+J195)/(IF(J24=0,0,1)+IF(J43=0,0,1)+IF(J62=0,0,1)+IF(J81=0,0,1)+IF(J100=0,0,1)+IF(J119=0,0,1)+IF(J138=0,0,1)+IF(J157=0,0,1)+IF(J176=0,0,1)+IF(J195=0,0,1)) -> 700.559
